bitfinex-derivatives/quotes_SOLF0:USTF0_20250416
["timestamp","ask_amount","ask_price","bid_price","bid_amount"]
[1744776655421,0.055079,126.32,126.3,0.05229341]
[1744776656321,0.055079,126.32,126.3,7.97019341]
[1744776656726,0.055079,126.32,126.3,0.05229341]
[1744776657129,0.055079,126.32,126.3,31.55229341]
[1744776657528,0.055079,126.32,126.3,39.47019341]
[1744776657924,0.055079,126.32,126.3,0.05229341]
[1744776658128,7.9176,126.31,126.3,0.05229341]
[1744776659030,7.972379,126.32,126.3,0.05229341]
[1744776661626,7.972379,126.32,126.3,7.97049341]
[1744776661827,0.055079,126.32,126.3,0.05229341]
[1744776662029,0.055079,126.32,126.3,31.53229341]
[1744776662732,7.972379,126.32,126.3,31.53229341]
[1744776663934,7.972379,126.32,126.3,39.45049341]
[1744776667735,0.055079,126.32,126.31,7.9176]
[1744776667943,0.055079,126.32,126.31,14.63631136]
[1744776669736,0.055079,126.32,126.31,6.71871136]
[1744776669940,0.055079,126.32,126.3,39.45029341]
[1744776670337,0.055079,126.32,126.31,7.9176]
[1744776670641,0.055079,126.32,126.31,14.63631136]
[1744776670940,0.055079,126.32,126.3,31.53229341]
[1744776671239,0.055079,126.32,126.3,38.25100477]
[1744776672738,0.055079,126.32,126.3,46.16880477]
[1744776673642,0.055079,126.32,126.3,39.45009341]
[1744776674645,7.972079,126.32,126.3,39.45009341]
[1744776677147,0.055079,126.32,126.3,39.45009341]
[1744776677843,7.972079,126.32,126.3,39.45009341]
[1744776680051,7.9176,126.31,126.3,31.53229341]
[1744776680251,7.9176,126.31,126.3,0.05229341]
[1744776680752,7.9192,126.29,126.27,31.48]
[1744776681651,7.9195,126.28,126.26,7.9205]
[1744776681851,7.97662099,126.28,126.26,7.97367594]
[1744776684950,7.97662099,126.28,126.26,0.05317594]
[1744776686253,7.97662099,126.28,126.26,7.97387594]
[1744776686757,7.97662099,126.28,126.26,0.05317594]
[1744776691858,0.05712099,126.28,126.26,0.05317594]
[1744776692058,0.05712099,126.28,126.26,6.7718873]
[1744776692563,0.05712099,126.28,126.27,7.9201]
[1744776694066,0.05712099,126.28,126.27,39.4201]
[1744776700366,0.05712099,126.28,126.27,31.5]
[1744776701170,0.05712099,126.28,126.27,39.4201]
[1744776701564,0.05712099,126.28,126.27,7.9201]
[1744776702569,0.05712099,126.28,126.26,7.97357594]
[1744776702773,0.05712099,126.28,126.26,0.05317594]
[1744776703270,0.05712099,126.28,126.26,7.97357594]
[1744776703474,7.9201,126.27,126.26,0.05317594]
[1744776704472,7.97692099,126.28,126.26,0.05317594]
[1744776708473,0.05712099,126.28,126.26,0.05317594]
[1744776708665,7.97722099,126.28,126.26,0.05317594]
[1744776712876,0.05712099,126.28,126.26,7.97357594]
[1744776715079,6.71871136,126.33,126.27,6.71871136]
[1744776715376,3.38102795,126.32,126.27,38.21871136]
[1744776715679,7.9176,126.31,126.29,7.9187]
[1744776716075,7.9182,126.3,126.29,0.05714368]
[1744776716272,11.2998513,126.3,126.29,0.05714368]
[1744776716976,11.29984862,126.3,126.29,0.05714368]
[1744776719981,11.30333003,126.3,126.29,0.05714368]
[1744776720988,3.38513003,126.3,126.29,0.05714368]
[1744776721181,0.05835909,126.31,126.29,0.05714368]
[1744776723186,7.97595909,126.31,126.29,7.97564368]
[1744776723985,0.05835909,126.31,126.29,7.97564368]
[1744776724184,0.05835909,126.31,126.3,7.9182]
[1744776724382,3.44262238,126.31,126.29,0.05714368]
[1744776724582,0.05835909,126.31,126.29,7.97564368]
[1744776725191,0.05835909,126.31,126.3,7.9182]
[1744776725584,0.05835909,126.31,126.3,14.63691136]
[1744776728393,0.05835909,126.31,126.29,0.05714368]
[1744776728796,6.77707045,126.31,126.29,0.05714368]
[1744776729393,3.38364724,126.3,126.29,0.05714368]
[1744776729593,3.38364724,126.3,126.24,37.43871136]
[1744776729594,10.1023586,126.3,126.24,37.43871136]
[1744776729794,6.71871136,126.3,126.24,37.43871136]
[1744776730199,7.9199,126.28,126.25,7.9211]
[1744776730495,14.63861136,126.28,126.25,7.9211]
[1744776730695,14.69431036,126.28,126.25,7.97623958]
[1744776734807,14.69431036,126.28,126.26,7.9207]
[1744776735907,14.69431036,126.28,126.25,0.05513958]
[1744776735908,7.9201,126.27,126.25,7.97633958]
[1744776736102,6.77441036,126.28,126.25,7.97633958]
[1744776736509,14.69421036,126.28,126.26,7.9206]
[1744776736808,6.77441036,126.28,126.26,7.9206]
[1744776737010,0.055699,126.28,126.27,7.9201]
[1744776744215,0.055699,126.28,126.26,7.9204]
[1744776749217,6.71871136,126.27,126.25,0.05513958]
[1744776749718,7.9207,126.26,126.25,0.05513958]
[1744776750121,14.63941136,126.26,126.25,0.05513958]
[1744776756927,6.71871136,126.27,126.25,7.97653958]
[1744776757117,6.77441036,126.28,126.25,7.97653958]
[1744776757421,3.38296515,126.27,126.25,7.97653958]
[1744776757621,6.77441036,126.28,126.25,7.97653958]
[1744776757925,3.38220065,126.27,126.25,7.97653958]
[1744776758122,6.77441036,126.28,126.25,7.97653958]
[1744776759229,7.9202,126.27,126.25,7.97653958]
[1744776763529,7.9202,126.27,126.25,0.05513958]
[1744776763729,7.9201,126.27,126.25,0.05513958]
[1744776764631,14.63941136,126.26,126.25,0.05513958]
[1744776768432,7.9205,126.27,126.25,0.05513958]
[1744776771136,7.9207,126.26,126.25,0.05513958]
[1744776772333,11.3063593,126.26,126.25,0.05513958]
[1744776774030,18.02507066,126.26,126.25,0.05513958]
[1744776777139,10.10437066,126.26,126.25,0.05513958]
[1744776777340,3.3856593,126.26,126.25,0.05513958]
[1744776778438,11.3063593,126.26,126.25,0.05513958]
[1744776780240,3.39009504,126.26,126.25,0.05513958]
[1744776782745,11.31079504,126.26,126.25,0.05513958]
[1744776783244,11.31211486,126.26,126.25,0.05513958]
[1744776784346,3.39141486,126.26,126.25,0.05513958]
[1744776785045,3.39191083,126.26,126.25,0.05513958]
[1744776793957,3.39191083,126.26,126.25,7.97653958]
[1744776794155,3.39799399,126.26,126.25,7.97653958]
[1744776794450,3.39799399,126.26,126.25,0.05513958]
[1744776795251,7.9205,126.27,126.25,0.05513958]
[1744776796548,7.9207,126.26,126.25,0.05513958]
[1744776797446,7.9204,126.27,126.25,0.05513958]
[1744776799558,7.9207,126.26,126.25,0.05513958]
[1744776808667,14.63941136,126.26,126.25,0.05513958]
[1744776808965,7.9227,126.23,126.2,29.56]
[1744776809165,7.9227,126.23,126.2,37.4842]
[1744776809966,7.98245904,126.23,126.2,37.54228139]
[1744776813667,7.98245904,126.23,126.21,7.9239]
[1744776814769,0.05975904,126.23,126.21,7.9239]
[1744776814969,0.05975904,126.23,126.22,7.9233]
[1744776820771,0.05975904,126.23,126.21,7.9236]
[1744776820977,0.05975904,126.23,126.2,29.61808139]
[1744776821273,0.05975904,126.23,126.22,7.9233]
[1744776824972,0.05975904,126.23,126.2,29.61808139]
[1744776825675,7.98275904,126.23,126.21,7.9239]
[1744776827775,7.98275904,126.23,126.2,37.54228139]
[1744776829576,7.98275904,126.23,126.21,7.9238]
[1744776829879,0.05975904,126.23,126.21,7.9238]
[1744776832479,7.98235904,126.23,126.21,7.9238]
[1744776832692,7.98235904,126.23,126.21,7.9239]
[1744776833481,0.05975904,126.23,126.21,7.9239]
[1744776835487,0.05975904,126.23,126.22,7.9233]
[1744776838883,0.05975904,126.23,126.22,14.64201136]
[1744776840282,0.05975904,126.23,126.22,7.9233]
[1744776840483,0.05975904,126.23,126.21,7.9236]
[1744776842186,0.05975904,126.23,126.22,7.9233]
[1744776857988,7.98245904,126.23,126.21,28.96]
[1744776858792,7.9233,126.22,126.21,28.96]
[1744776862504,0.05975904,126.23,126.21,28.96]
[1744776862505,0.05975904,126.23,126.21,36.8837]
[1744776863605,7.98235904,126.23,126.21,7.9237]
[1744776863904,7.98235904,126.23,126.2,7.98238139]
[1744776884527,7.98235904,126.23,126.21,7.9239]
[1744776884728,0.05975904,126.23,126.21,7.9239]
[1744776886725,7.98245904,126.23,126.21,7.9239]
[1744776888026,0.05975904,126.23,126.2,0.05808139]
[1744776888227,6.7784704,126.23,126.2,0.05808139]
[1744776888627,7.9238,126.22,126.2,0.05808139]
[1744776889129,6.7784704,126.23,126.2,0.05808139]
[1744776889421,7.9239,126.21,126.2,0.05808139]
[1744776896231,14.64261136,126.21,126.2,0.05808139]
[1744776896932,6.71871136,126.21,126.13,28.76]
[1744776897132,6.71871136,126.16,126.11,6.71871136]
[1744776897336,6.71871136,126.16,126.11,14.64851136]
[1744776897532,6.71871136,126.15,126.1,35.47871136]
[1744776897933,7.929,126.13,126.11,0.05931131]
[1744776900235,7.9295,126.12,126.11,0.05931131]
[1744776900535,14.64821136,126.12,126.11,0.05931131]
[1744776900736,7.932,126.09,126.05,7.9336]
[1744776901033,6.71871136,126.09,126.04,6.71871136]
[1744776901235,7.9328,126.07,126.04,6.71871136]
[1744776901535,6.71871136,126.09,126.04,6.71871136]
[1744776901731,7.99115115,126.08,126.05,0.05646637]
[1744776902130,0.05865115,126.08,126.05,0.05646637]
[1744776902334,7.9331,126.07,126.05,0.05646637]
[1744776903033,7.9333,126.06,126.05,0.05646637]
[1744776903235,14.65201136,126.06,126.05,0.05646637]
[1744776903832,7.9365,126.01,125.98,10.78941136]
[1744776904735,7.9365,126.01,125.98,0.03181979]
[1744776904736,6.76971143,126.01,125.98,0.03181979]
[1744776905138,0.05100007,126.01,125.98,0.03181979]
[1744776905432,6.71871136,125.99,125.98,0.03181979]
[1744776905932,14.65641136,125.99,125.98,0.03181979]
[1744776907540,7.9387,125.98,125.93,14.65991136]
[1744776907739,14.65741136,125.98,125.93,6.71871136]
[1744776908538,6.71871136,125.98,125.94,7.9408]
[1744776908738,0.0534374,125.97,125.93,6.71871136]
[1744776908936,0.0534374,125.97,125.94,6.71871136]
[1744776909642,0.0534374,125.97,125.94,14.65911136]
[1744776909845,0.0534374,125.97,125.95,6.71871136]
[1744776910043,0.0534374,125.97,125.96,6.71871136]
[1744776910343,0.05084225,125.98,125.96,14.65791136]
[1744776910543,0.05084225,125.98,125.96,6.71871136]
[1744776911438,0.05084225,125.98,125.97,14.65771136]
[1744776911643,36.7359,126.02,125.97,6.71871136]
[1744776911843,36.7359,126.02,125.98,6.71871136]
[1744776912344,35.51871136,126.04,125.99,6.71871136]
[1744776912643,0.05208453,126.03,126.02,6.71871136]
[1744776912844,0.05799477,126.04,126.02,14.65421136]
[1744776914645,0.05799477,126.04,126.01,0.04995801]
[1744776915646,0.05799477,126.04,126.01,7.98605801]
[1744776916649,7.99259477,126.04,126.01,7.98605801]
[1744776916845,7.99259477,126.04,126.01,0.04995801]
[1744776917050,28.85799477,126.04,126.01,0.04995801]
[1744776917252,7.9357,126.03,126.01,0.04995801]
[1744776918151,14.65441136,126.03,126.01,0.04995801]
[1744776919555,7.9358,126.02,126.01,0.04995801]
[1744776919758,6.71871136,126.03,125.95,6.2605]
[1744776919949,6.71871136,126.0,125.95,6.2605]
[1744776920253,35.51871136,126.0,125.95,4.1217]
[1744776920655,35.51871136,126.0,125.96,6.71871136]
[1744776920856,0.0584345,125.99,125.97,7.9384]
[1744776921051,0.0584345,125.99,125.95,4.1217]
[1744776921355,7.9384,125.98,125.94,7.9405]
[1744776921958,7.9384,125.98,125.95,7.94]
[1744776922159,7.99078373,125.98,125.95,7.94]
[1744776922462,7.99078373,125.98,125.94,7.9405]
[1744776922958,7.9398,125.96,125.92,7.9418]
[1744776923258,0.05272389,125.95,125.91,33.1401]
[1744776923656,0.05272389,125.95,125.92,7.9418]
[1744776924258,0.05272389,125.95,125.91,36.7425]
[1744776924458,0.05272389,125.95,125.91,28.8]
[1744776924959,0.05272389,125.95,125.93,7.9412]
[1744776925149,0.05272389,125.95,125.91,28.8]
[1744776925554,0.05272389,125.95,125.91,39.35508834]
[1744776925949,10.55508834,126.04,125.93,10.55508834]
[1744776926254,7.9368,126.01,125.97,7.9386]
[1744776926449,28.8,126.02,125.95,10.55508834]
[1744776926656,36.7362,126.02,125.98,7.938]
[1744776926851,10.55508834,126.08,125.99,10.55508834]
[1744776927056,0.05034933,126.05,126.02,0.05360813]
[1744776927257,0.05547268,126.05,126.02,7.98900813]
[1744776927456,0.05547268,126.05,126.02,0.05360813]
[1744776928355,0.05547268,126.05,126.03,7.9348]
[1744776928557,0.05547268,126.05,126.02,0.05360813]
[1744776928757,0.05547268,126.05,126.03,7.9348]
[1744776929963,0.05547268,126.05,126.02,7.98910813]
[1744776930164,28.85547268,126.05,126.02,0.05360813]
[1744776930663,33.02697268,126.05,126.02,0.05360813]
[1744776931162,7.9352,126.03,126.02,0.05360813]
[1744776935064,33.02697268,126.05,126.02,0.05360813]
[1744776935564,7.935,126.04,126.02,0.05360813]
[1744776936559,10.55508834,126.04,125.97,28.8]
[1744776936865,10.55508834,125.98,125.9,29.78]
[1744776937167,7.9412,125.94,125.9,37.7234]
[1744776937666,0.05138634,125.93,125.9,37.7234]
[1744776938161,0.05138634,125.93,125.92,7.9421]
[1744776938465,29.78,125.98,125.91,0.05138634]
[1744776938665,29.78,125.98,125.91,4.33328634]
[1744776938861,7.9393,125.97,125.93,7.9413]
[1744776939061,29.78,125.98,125.91,4.2819]
[1744776939366,0.05197906,125.96,125.93,0.05138634]
[1744776939564,7.99167906,125.96,125.93,0.05138634]
[1744776940165,0.05197906,125.96,125.93,0.05138634]
[1744776940367,0.05197906,125.96,125.93,7.99288634]
[1744776941366,0.05197906,125.96,125.94,7.9409]
[1744776941562,0.05197906,125.96,125.93,29.85138634]
[1744776941963,7.9374,126.0,125.97,7.9386]
[1744776942268,111.077282,126.06,125.98,10.55508834]
[1744776942466,7.9352,126.04,126.0,7.9368]
[1744776942668,111.077282,126.06,125.99,33.921]
[1744776942968,0.05334816,126.04,126.01,0.05681763]
[1744776943162,7.98834816,126.04,126.01,0.05681763]
[1744776944866,7.9353,126.03,126.01,0.05681763]
[1744776945769,0.05334816,126.04,126.01,0.05681763]
[1744776946664,7.98844816,126.04,126.01,0.05681763]
[1744776947267,7.98844816,126.04,126.01,7.99321763]
[1744776948370,7.9352,126.03,126.01,0.05681763]
[1744776950272,7.98824816,126.04,126.01,7.99321763]
[1744776951974,7.9352,126.03,126.01,0.05681763]
[1744776952477,29.83334816,126.04,126.01,0.05681763]
[1744776953183,7.9358,126.02,126.01,0.05681763]
[1744776956183,7.9354,126.03,126.01,0.05681763]
[1744776956486,0.05334816,126.04,126.01,0.05681763]
[1744776957084,0.05334816,126.04,126.01,7.99301763]
[1744776957085,7.98824816,126.04,126.01,7.99301763]
[1744776957384,7.98824816,126.04,126.01,0.05681763]
[1744776957585,7.9357,126.03,126.01,0.05681763]
[1744776957984,0.05334816,126.04,126.01,0.05681763]
[1744776959888,7.9355,126.03,126.01,0.05681763]
[1744776960687,7.9355,126.03,126.01,7.99321763]
[1744776960881,7.9355,126.03,126.01,0.05681763]
[1744776961078,7.98814816,126.04,126.01,7.99281763]
[1744776961586,7.9352,126.03,126.01,0.05681763]
[1744776963386,7.98854816,126.04,126.01,0.05681763]
[1744776963787,7.98854816,126.04,126.01,7.99321763]
[1744776963987,0.05334816,126.04,126.01,0.05681763]
[1744776966593,7.9355,126.03,126.01,0.05681763]
[1744776967190,7.98804816,126.04,126.01,7.99301763]
[1744776968089,0.05334816,126.04,126.02,7.9356]
[1744776970493,7.98794816,126.04,126.01,7.99291763]
[1744776971188,7.9355,126.03,126.01,0.05681763]
[1744776971394,0.05334816,126.04,126.01,0.05681763]
[1744776972194,7.9356,126.03,126.01,0.05681763]
[1744776972693,0.05334816,126.04,126.01,0.05681763]
[1744776972893,7.98814816,126.04,126.01,7.99291763]
[1744776973794,0.05334816,126.04,126.02,7.9355]
[1744776973994,0.05334816,126.04,126.01,0.05681763]
[1744776974396,0.05334816,126.04,126.02,7.9358]
[1744776974595,7.98804816,126.04,126.02,7.9358]
[1744776974897,0.05334816,126.04,126.02,7.9358]
[1744776975496,0.05334816,126.04,126.01,7.99301763]
[1744776976295,7.98814816,126.04,126.01,7.99301763]
[1744776976685,0.05334816,126.04,126.01,0.05681763]
[1744776976887,30.23334816,126.04,126.01,0.05681763]
[1744776977287,7.9358,126.02,126.01,0.05681763]
[1744776977492,7.9358,126.02,126.01,0.00098268]
[1744776978197,7.9358,126.02,125.95,38.12]
[1744776978198,7.9386,125.98,125.95,38.12]
[1744776979101,7.99923549,125.98,125.95,38.16654777]
[1744776979297,7.939,125.97,125.95,0.04654777]
[1744776981193,7.99923549,125.98,125.95,0.04654777]
[1744776983299,7.9394,125.97,125.95,0.04654777]
[1744776985102,0.06063549,125.98,125.95,0.04654777]
[1744776985502,30.24063549,125.98,125.95,0.04654777]
[1744776986402,7.9396,125.96,125.95,0.04654777]
[1744776991305,7.9436,125.9,125.87,2.037]
[1744776991501,7.9436,125.9,125.86,30.18]
[1744776991702,7.9436,125.9,125.87,7.945]
[1744776992107,7.9443,125.89,125.86,38.1258]
[1744776992411,8.00010785,125.89,125.86,38.1258]
[1744776992911,0.05580785,125.89,125.86,30.18]
[1744776993209,0.05580785,125.89,125.83,6.343]
[1744776993402,8.00030785,125.89,125.85,7.9462]
[1744776994111,7.9448,125.88,125.85,7.9462]
[1744776994517,0.05580785,125.89,125.85,7.9462]
[1744776994813,8.00030785,125.89,125.85,7.9462]
[1744776995114,0.05580785,125.89,125.84,7.9469]
[1744776995314,7.9456,125.87,125.83,6.343]
[1744776995614,0.0527059,125.86,125.81,7.949]
[1744776995807,0.0527059,125.86,125.79,30.4]
[1744776996011,0.0527059,125.86,125.79,40.95508834]
[1744776996210,0.0527059,125.86,125.79,30.4]
[1744776996412,0.0527059,125.86,125.81,10.55508834]
[1744776996914,0.0527059,125.86,125.83,10.55508834]
[1744776997314,0.0527059,125.86,125.83,14.88288834]
[1744776997816,0.0527059,125.86,125.83,4.3278]
[1744776998117,7.9987059,125.86,125.83,12.2755]
[1744776998317,0.0527059,125.86,125.83,12.2755]
[1744776999417,0.0527059,125.86,125.83,10.1581]
[1744776999613,0.0527059,125.86,125.84,7.9471]
[1744776999820,0.0527059,125.86,125.83,2.2104]
[1744777000116,0.0527059,125.86,125.83,10.1576]
[1744777000318,0.0527059,125.86,125.83,2.2104]
[1744777001619,0.0527059,125.86,125.84,7.9469]
[1744777001811,0.0527059,125.86,125.82,40.95508834]
[1744777002012,0.0527059,125.86,125.82,7.9481]
[1744777002219,0.0527059,125.86,125.8,10.55508834]
[1744777002523,0.0527059,125.86,125.83,7.9477]
[1744777003121,0.0527059,125.86,125.82,7.9482]
[1744777003420,0.0527059,125.86,125.81,10.55508834]
[1744777003619,0.0527059,125.86,125.79,45.18348834]
[1744777003813,30.4727059,125.86,125.79,45.18348834]
[1744777005021,7.9479,125.83,125.8,7.9494]
[1744777005218,0.05829451,125.83,125.79,30.42]
[1744777005721,0.05829451,125.83,125.82,7.9484]
[1744777006420,0.05829451,125.83,125.82,18.50348834]
[1744777006626,30.42,125.89,125.85,7.9465]
[1744777006820,7.945,125.88,125.85,7.9465]
[1744777007020,7.945,125.88,125.84,7.947]
[1744777007221,30.42,125.89,125.82,40.97508834]
[1744777007422,7.9458,125.87,125.82,40.97508834]
[1744777007615,8.00569983,125.87,125.84,0.05529641]
[1744777008222,7.946,125.86,125.84,0.05529641]
[1744777009821,0.05989983,125.87,125.84,0.05529641]
[1744777010920,30.42,125.86,125.84,0.05529641]
[1744777011322,7.9466,125.85,125.84,0.05529641]
[1744777013924,18.49508834,125.85,125.76,30.42]
[1744777014123,36.7474,125.86,125.76,30.42]
[1744777014124,10.55508834,125.83,125.76,30.42]
[1744777014328,7.9508,125.79,125.73,47.41338834]
[1744777014526,30.42,125.82,125.73,47.41338834]
[1744777014828,0.05951065,125.79,125.73,47.41338834]
[1744777015028,8.01031065,125.79,125.73,47.41338834]
[1744777015329,0.05951065,125.79,125.73,40.97508834]
[1744777015630,7.9512,125.78,125.74,7.9529]
[1744777015829,30.47951065,125.79,125.73,40.97508834]
[1744777016226,0.05951065,125.79,125.77,7.9513]
[1744777016431,0.05951065,125.79,125.75,16.93918834]
[1744777018028,8.00991065,125.79,125.75,24.89188834]
[1744777018233,8.00991065,125.79,125.75,20.63058834]
[1744777018636,7.9511,125.78,125.75,12.67788834]
[1744777018831,7.9511,125.78,125.75,2.1228]
[1744777019232,10.61459899,125.79,125.7,35.8652]
[1744777019439,0.0516474,125.76,125.72,10.55508834]
[1744777020443,0.0516474,125.76,125.75,7.9529]
[1744777020841,0.0516474,125.76,125.72,7.9545]
[1744777021347,7.9532,125.75,125.71,7.955]
[1744777021841,0.0516474,125.76,125.7,14.68028834]
[1744777022145,0.0516474,125.76,125.7,35.8652]
[1744777022349,0.0516474,125.76,125.7,46.42028834]
[1744777022545,0.0516474,125.76,125.72,10.55508834]
[1744777022741,0.0516474,125.76,125.74,10.55508834]
[1744777023139,36.0903,125.82,125.74,42.29508834]
[1744777023342,31.74,125.82,125.76,10.55508834]
[1744777023649,614.45508834,125.85,125.77,31.74]
[1744777024147,0.05024535,125.82,125.8,0.0546455]
[1744777025341,0.05024535,125.82,125.8,8.0039455]
[1744777025542,0.05024535,125.82,125.8,0.0546455]
[1744777025945,0.05024535,125.82,125.81,7.9491]
[1744777027349,0.05024535,125.82,125.8,0.0546455]
[1744777028948,0.05024535,125.82,125.8,8.0042455]
[1744777029144,0.05024535,125.82,125.8,0.0546455]
[1744777029647,7.99904535,125.82,125.8,0.0546455]
[1744777030339,7.9491,125.81,125.8,0.0546455]
[1744777030744,0.05024535,125.82,125.8,0.0546455]
[1744777030948,7.99894535,125.82,125.8,0.0546455]
[1744777031349,0.05024535,125.82,125.8,0.0546455]
[1744777031549,7.99904535,125.82,125.8,0.0546455]
[1744777032650,0.05024535,125.82,125.8,0.0546455]
[1744777033148,7.99904535,125.82,125.8,0.0546455]
[1744777034049,0.05024535,125.82,125.8,0.0546455]
[1744777034649,7.99904535,125.82,125.8,0.0546455]
[1744777035345,0.05024535,125.82,125.8,8.0043455]
[1744777035548,0.05024535,125.82,125.8,0.0546455]
[1744777036452,0.05024535,125.82,125.81,7.9491]
[1744777037043,31.74,125.85,125.8,10.60973384]
[1744777037250,4.1641,125.87,125.8,10.60973384]
[1744777037451,7.9469,125.85,125.81,7.9485]
[1744777037848,0.05540381,125.84,125.82,0.05672593]
[1744777038151,0.05540381,125.84,125.82,8.00502593]
[1744777039853,0.05540381,125.84,125.83,7.9478]
[1744777041253,2.1536,125.91,125.86,7.9459]
[1744777041553,7.9438,125.9,125.84,10.55508834]
[1744777042053,16.91658834,125.95,125.86,10.55508834]
[1744777042249,0.06089416,125.92,125.89,8.00393026]
[1744777042453,0.06089416,125.92,125.89,0.06023026]
[1744777042850,0.06089416,125.92,125.91,7.9428]
[1744777043557,111.077282,125.97,125.93,7.9413]
[1744777044049,111.077282,125.97,125.92,7.942]
[1744777044354,31.74,125.98,125.9,10.55508834]
[1744777044550,0.05501081,125.95,125.91,7.9425]
[1744777044755,0.05501081,125.95,125.93,0.05395761]
[1744777045354,7.99531081,125.95,125.93,0.05395761]
[1744777045657,7.9409,125.94,125.93,0.05395761]
[1744777045857,0.05501081,125.95,125.93,0.05395761]
[1744777046256,7.99561081,125.95,125.93,0.05395761]
[1744777046456,0.05501081,125.95,125.93,0.05395761]
[1744777047756,42.33009915,125.95,125.93,0.00371226]
[1744777048457,7.9409,125.94,125.93,0.00371226]
[1744777048960,42.33009915,125.95,125.87,2.0483]
[1744777049158,7.9434,125.9,125.87,9.9933]
[1744777049658,7.9434,125.9,125.86,39.6657]
[1744777049860,7.99963577,125.89,125.87,0.05990831]
[1744777050160,0.05940612,125.89,125.87,0.05990831]
[1744777050350,7.9447,125.88,125.87,0.05990831]
[1744777050660,0.05940612,125.89,125.87,0.05990831]
[1744777051660,0.05940612,125.89,125.88,7.9447]
[1744777051858,0.05940612,125.89,125.87,0.05990831]
[1744777052059,0.05940612,125.89,125.88,7.9447]
[1744777052358,0.05940612,125.89,125.87,0.05990831]
[1744777052657,0.05940612,125.89,125.87,8.00490831]
[1744777053863,0.05940612,125.89,125.87,0.05990831]
[1744777054464,0.05940612,125.89,125.87,8.00500831]
[1744777055666,0.05940612,125.89,125.87,0.05990831]
[1744777055862,42.85449446,125.89,125.87,0.05990831]
[1744777056256,7.9447,125.88,125.87,0.05990831]
[1744777056863,2.198,125.88,125.8,604.4]
[1744777057260,7.947,125.85,125.82,7.9484]
[1744777057764,0.05009395,125.85,125.82,0.05070249]
[1744777058664,7.9476,125.84,125.82,0.05070249]
[1744777059064,0.05009395,125.85,125.82,0.05070249]
[1744777059261,7.9478,125.83,125.82,0.05070249]
[1744777062464,7.9474,125.84,125.82,0.05070249]
[1744777062864,0.05009395,125.85,125.82,0.05070249]
[1744777063264,7.9478,125.83,125.82,0.05070249]
[1744777063968,7.9474,125.84,125.82,0.05070249]
[1744777064856,7.9478,125.83,125.82,0.05070249]
[1744777066461,7.9475,125.84,125.82,0.05070249]
[1744777066865,0.05009395,125.85,125.82,0.05070249]
[1744777067567,7.99699395,125.85,125.82,7.99900249]
[1744777067867,7.99699395,125.85,125.82,0.05070249]
[1744777070558,0.05009395,125.85,125.82,0.05070249]
[1744777070965,7.9478,125.83,125.82,0.05070249]
[1744777075675,50.76288834,125.83,125.82,0.05070249]
[1744777075972,40.2078,125.83,125.82,0.05070249]
[1744777076172,7.9478,125.83,125.82,0.05070249]
[1744777078674,40.2075,125.84,125.82,0.05070249]
[1744777079168,0.05009395,125.85,125.82,0.05070249]
[1744777079672,0.05009395,125.85,125.83,7.9475]
[1744777080376,0.05009395,125.85,125.82,0.05070249]
[1744777080872,31.78,125.84,125.82,0.05070249]
[1744777081077,10.55508834,125.83,125.75,2.0122]
[1744777081780,7.9497,125.81,125.77,7.9512]
[1744777082077,0.05751556,125.8,125.78,0.05403477]
[1744777082278,8.00761556,125.8,125.78,0.05403477]
[1744777082581,0.05751556,125.8,125.78,0.05403477]
[1744777083676,0.05751556,125.8,125.78,8.00483477]
[1744777083878,0.05751556,125.8,125.78,0.05403477]
[1744777084377,0.05751556,125.8,125.78,8.00483477]
[1744777084573,0.05751556,125.8,125.78,0.05403477]
[1744777087377,7.9503,125.79,125.78,0.05403477]
[1744777094481,10.55508834,125.79,125.7,42.35508834]
[1744777094688,10.55508834,125.76,125.7,31.8]
[1744777095085,7.9536,125.74,125.71,7.9551]
[1744777095384,10.55508834,125.76,125.7,31.8]
[1744777095587,7.9542,125.73,125.7,39.7556]
[1744777095987,7.9542,125.73,125.7,7.9556]
[1744777097189,7.9542,125.73,125.69,7.9563]
[1744777097385,0.05270698,125.74,125.69,7.9563]
[1744777097589,31.85270698,125.74,125.67,37.853]
[1744777097791,31.85270698,125.74,125.69,7.9566]
[1744777098293,31.85270698,125.74,125.67,45.8106]
[1744777098886,42.40779532,125.74,125.67,33.858]
[1744777099093,42.40779532,125.74,125.67,31.8]
[1744777099392,10.55508834,125.7,125.64,7.9596]
[1744777099591,10.61319338,125.68,125.62,6.2972]
[1744777099785,0.05291585,125.66,125.62,6.2972]
[1744777100292,8.01171585,125.66,125.62,6.2972]